fUST/lending_fUST_20251002
["ID","MTS","AMOUNT","RATE_DAILY","PERIOD"]
[388780659,1759356658596,-500.0,0.00020792,2]
[388780660,1759356658606,-500.73488065,0.00020792,2]
[388780661,1759356658616,-500.0,0.00020792,2]
[388780662,1759356658625,-413.1103713,0.00020792,2]
[388780663,1759356658635,-500.0,0.00020792,2]
[388780664,1759356658644,-1680.0,0.00020798,2]
[388780665,1759356658654,-2000.0,0.00020816,2]
[388780666,1759356658664,-1987.06369812,0.00020816,2]
[388780667,1759356658687,-12.93630188,0.00020816,2]
[388780668,1759356658697,-2000.0,0.00020816,2]
[388780669,1759356658707,-500.0,0.00020817,2]
[388780670,1759356658716,-500.0,0.00020821,2]
[388780671,1759356658726,-500.0,0.00020821,2]
[388780672,1759356658735,-500.0,0.00020821,2]
[388780673,1759356658745,-500.0,0.00020821,2]
[388780674,1759356658754,-500.0,0.00020821,2]
[388780675,1759356658765,-500.0,0.00020821,2]
[388780676,1759356658775,-539.16,0.00020821,2]
[388780677,1759356658785,-500.0,0.00020821,2]
[388780678,1759356658795,-500.0,0.00020821,2]
[388780679,1759356658805,-500.0,0.00020821,2]
[388780680,1759356658814,-500.0,0.00020821,2]
[388780681,1759356658824,-500.0,0.00020821,2]
[388780682,1759356658833,-500.0,0.00020821,2]
[388780683,1759356658842,-500.0,0.00020821,2]
[388780684,1759356658851,-500.0,0.00020821,2]
[388780685,1759356658860,-360.0,0.00020821,2]
[388780686,1759356658869,-500.0,0.00020821,2]
[388780687,1759356658878,-500.0,0.00020821,2]
[388780688,1759356658887,-500.0,0.00020821,2]
[388780689,1759356658897,-500.0,0.00020821,2]
[388780690,1759356658906,-500.0,0.00020821,2]
[388780691,1759356658916,-586.96,0.00020821,2]
[388780692,1759356658926,-500.0,0.00020821,2]
[388780693,1759356658938,-378.8058224,0.00020821,2]
[388780694,1759356658970,227.37884895,0.00018878,2]
[388780714,1759356728109,157.937996,0.00018457,2]
[388780715,1759356859865,1294.8729941,0.00018872,2]
[388780718,1759356890118,196.190997,0.00018247,2]
[388780720,1759356935511,666.0,0.00018177,2]
[388780721,1759356942062,228.54,0.00033437,60]
[388780722,1759357058536,448.72387991,0.00018791,2]
[388780730,1759357140174,1133.01386989,0.00018872,2]
[388780738,1759357413062,155.0,0.00033451,60]
[388780740,1759357425459,991.38713611,0.00018872,2]
[388780741,1759357426597,154.25,0.00033451,60]
[388780743,1759357472109,342.25857,0.00033451,60]
[388780797,1759357625121,-300.0,0.00018965,2]
[388780798,1759357625143,-869.85090414,0.00018966,2]
[388780829,1759357667171,10000.01,0.00018,2]
[388780830,1759357667196,399.88739567,0.00018,2]
[388780843,1759357685709,157.9379967,0.0001807,2]
[388780856,1759357698239,1005.11074094,0.00015,2]
[388780858,1759357700062,2107.83720362,0.000176,2]
[388780864,1759357709220,6329.23666307,0.00017,2]
[388780865,1759357709243,10000.01,0.00017,2]
[388780866,1759357709266,534.35605535,0.00017,2]
[388780867,1759357710288,867.46374414,0.00018872,2]
[388780870,1759357711666,1213.61885165,0.00015,2]
[388780875,1759357719203,2518.29138358,0.0001,2]
[388780920,1759357832735,-329.0,0.00018965,2]
[388780922,1759357832744,-124.0,0.00018965,2]
[388780932,1759357832832,-176.0,0.00018965,2]
[388780934,1759357832842,-1200.0,0.00018965,2]
[388780936,1759357832851,-167.33358558,0.00018965,2]
[388780937,1759357832860,-13684.11148009,0.00018966,2]
[388781084,1759357839689,-493.64746722,0.00018965,2]
[388781107,1759357842861,-6.35253278,0.00018965,2]
[388781108,1759357842873,-206.07001567,0.00018965,2]
[388781109,1759357842886,-281.89477625,0.00018965,2]
[388781130,1759357845767,-218.10522375,0.00018965,2]
[388781131,1759357845777,-167.99475915,0.00018965,2]
[388781132,1759357845787,-176.23087144,0.00018965,2]
[388781133,1759357845798,-123.90750866,0.00018965,2]
[388781134,1759357845809,-376.09249134,0.00018965,2]
[388781135,1759357845820,-298.4875087,0.00018965,2]
[388781136,1759357845832,-153.43910051,0.00018965,2]
[388781137,1759357845844,-219.48514979,0.00018965,2]
[388781139,1759357845945,-280.51485021,0.00018965,2]
[388781140,1759357845956,-1125.19968307,0.00018966,2]
[388781142,1759357845969,-667.36064083,0.00018966,2]
[388781150,1759357959606,443.87599717,0.00018321,2]
[388781159,1759358111693,508.67821006,0.00018321,2]
[388781167,1759358280155,228.59,0.00015984,2]
[388781168,1759358280631,228.59,0.00015984,2]
[388781169,1759358280920,228.57,0.00015984,2]
[388781170,1759358311260,196.190997,0.00017988,2]
[388781187,1759358560024,1433.09035504,0.00018839,2]
[388781190,1759358585239,154.450076,0.00025752,60]
[388781222,1759358801433,400.2,0.00028767,120]
[388781271,1759359031933,-500.0,0.000189,2]
[388781273,1759359031942,-1121.89120068,0.00018965,2]
[388781275,1759359031952,-300.0,0.00018965,2]
[388781277,1759359031961,-300.0,0.00018965,2]
[388781279,1759359031970,-300.0,0.00018965,2]
[388781281,1759359031979,-1200.0,0.00018965,2]
[388781283,1759359031988,-300.0,0.00018965,2]
[388781285,1759359031997,-500.0,0.00018966,2]
[388781287,1759359032007,-500.0,0.00018966,2]
[388781289,1759359032016,-500.0,0.00018966,2]
[388781291,1759359032025,-500.0,0.00018966,2]
[388781293,1759359032033,-500.0,0.00018966,2]
[388781295,1759359032042,-500.0,0.00018966,2]
[388781297,1759359032051,-379.31928987,0.00018966,2]
[388781299,1759359032061,-759.03077607,0.00018968,2]
[388781301,1759359032070,-1200.0,0.00018984,2]
[388781303,1759359032080,-1072.98588114,0.00018985,2]
[388781305,1759359032089,-50000.0,0.00018985,2]
[388781307,1759359032098,-309.0,0.00019068,3]
[388781309,1759359032109,-154.5,0.00019068,3]
[388781311,1759359032118,-463.55,0.00019068,3]
[388781314,1759359032127,-355.96542209,0.00019077,2]
[388781316,1759359032136,-500.0,0.00019077,2]
[388781319,1759359032145,-500.0,0.00019077,2]
[388781321,1759359032154,-536.62883616,0.00019077,2]
[388781323,1759359032166,-91212.62332974,0.00019078,2]
[388781324,1759359032175,-345.50813946,0.00019173,2]
[388781325,1759359032184,-392.43688719,0.00019173,2]
[388781327,1759359032193,-214.73883143,0.00019173,2]
[388781328,1759359032202,-500.0,0.00019173,2]
[388781329,1759359032210,-500.0,0.00019173,2]
[388781330,1759359032219,-500.0,0.00019173,2]
[388781331,1759359032227,-410.63911718,0.00019173,2]
[388781332,1759359032239,-89.36088282,0.00019173,2]
[388781333,1759359032248,-282.94653091,0.00019173,2]
[388781334,1759359032257,-286.61308127,0.00019173,2]
[388781335,1759359037972,-211.83399468,0.00018984,2]
[388781336,1759359037982,-196.19707144,0.00018984,2]
[388781337,1759359037992,-170.73653735,0.00018984,2]
[388781338,1759359038002,-213.38691873,0.00019173,2]
[388781339,1759359038011,-500.0,0.00019173,2]
[388781340,1759359038020,-500.0,0.00019178,2]
[388781341,1759359038030,-500.0,0.00019178,2]
[388781342,1759359038039,-500.0,0.00019178,2]
[388781343,1759359038048,-505.79205333,0.00019178,2]
[388781344,1759359038057,-624.68197212,0.00019178,2]
[388781346,1759359038066,-480.0,0.00019178,2]
[388781347,1759359038075,-480.0,0.00019178,2]
[388781348,1759359038085,-524.88384032,0.00019178,3]
[388781349,1759359038094,-500.0,0.00019178,2]
[388781350,1759359038103,-480.0,0.00019178,2]
[388781351,1759359038112,-480.0,0.00019178,2]
[388781352,1759359038121,-500.0,0.00019178,2]
[388781353,1759359038130,-480.0,0.00019178,2]
[388781354,1759359038139,-500.0,0.00019178,2]
[388781355,1759359038148,-480.0,0.00019178,2]
[388781356,1759359038158,-375.32,0.00019178,2]
[388781357,1759359038168,-480.0,0.00019178,2]
[388781358,1759359038177,-480.0,0.00019178,2]
[388781359,1759359038186,-480.0,0.00019178,2]
[388781360,1759359038195,-500.0,0.00019178,2]
[388781361,1759359038205,-500.0,0.00019178,2]
[388781362,1759359038214,-500.0,0.00019178,2]
[388781363,1759359038223,-500.0,0.00019178,2]
[388781364,1759359038233,-500.0,0.00019178,2]
[388781365,1759359038242,-440.0,0.00019178,2]
[388781366,1759359038251,-500.0,0.00019178,2]
[388781367,1759359038260,-500.0,0.00019178,2]
[388781368,1759359038270,-500.0,0.00019178,2]
[388781369,1759359038279,-500.0,0.00019178,2]
[388781370,1759359038288,-500.0,0.00019178,2]
[388781371,1759359038297,-500.0,0.00019178,2]
[388781372,1759359038306,-500.0,0.00019178,2]
[388781373,1759359038315,-480.0,0.00019178,2]
[388781374,1759359038325,-480.0,0.00019178,2]
[388781375,1759359038335,-480.0,0.00019178,2]
[388781376,1759359038344,-500.0,0.00019178,2]
[388781377,1759359038353,-500.0,0.00019178,2]
[388781378,1759359038363,-500.0,0.00019178,2]
[388781379,1759359038372,-500.0,0.00019178,2]
[388781380,1759359038381,-480.0,0.00019178,2]
[388781381,1759359038391,-212.36234554,0.00019178,2]
[388781382,1759359038400,-341.44,0.00019178,2]
[388781383,1759359038410,-500.0,0.00019178,2]
[388781384,1759359038422,-500.0,0.00019178,2]
[388781385,1759359038432,-500.0,0.00019178,2]
[388781386,1759359038441,-500.0,0.00019178,2]
[388781387,1759359038451,-500.0,0.00019178,2]
[388781388,1759359038461,-480.0,0.00019178,2]
[388781389,1759359038471,-500.0,0.00019178,2]
[388781390,1759359038482,-500.0,0.00019178,2]
[388781391,1759359038491,-500.0,0.00019178,2]
[388781392,1759359038501,-500.0,0.00019178,2]
[388781393,1759359038510,-500.0,0.00019178,2]
[388781394,1759359038520,-484.01351364,0.00019178,2]
[388781395,1759359038529,-500.0,0.00019178,2]
[388781396,1759359038538,-500.0,0.00019178,2]
[388781397,1759359038547,-500.0,0.00019178,2]
[388781398,1759359038556,-484.1159967,0.00019178,2]
[388781399,1759359038566,-500.0,0.00019178,2]
[388781400,1759359038575,-480.0,0.00019178,2]
[388781401,1759359038585,-500.0,0.00019178,2]
[388781402,1759359038595,-500.0,0.00019178,2]
[388781403,1759359038604,-500.0,0.00019178,2]
[388781404,1759359038614,-500.0,0.00019178,2]
[388781405,1759359038623,-500.0,0.00019178,2]
[388781406,1759359038632,-500.0,0.00019178,2]
[388781407,1759359038641,-42.14363588,0.00019178,2]
[388781408,1759359038656,-270.18842333,0.00019178,2]
[388781409,1759359038666,-500.0,0.00019178,2]
[388781410,1759359038676,-500.0,0.00019178,2]
[388781411,1759359038685,-500.0,0.00019178,2]
[388781412,1759359038695,-500.0,0.00019178,2]
[388781413,1759359038705,-500.0,0.00019178,2]
[388781414,1759359038715,-500.0,0.00019178,2]
[388781415,1759359038725,-500.0,0.00019178,2]
[388781416,1759359038735,-500.0,0.00019178,2]
[388781417,1759359038744,-500.0,0.00019178,2]
[388781418,1759359038754,-400.0,0.00019178,2]
[388781419,1759359038764,-500.0,0.00019178,2]
[388781420,1759359038773,-500.0,0.00019178,2]
[388781421,1759359038783,-500.0,0.00019178,2]
[388781422,1759359038793,-500.0,0.00019178,2]
[388781423,1759359038803,-500.0,0.00019178,2]
[388781424,1759359038813,-499.31820529,0.00019178,2]
[388781425,1759359038823,-500.0,0.00019178,2]
[388781426,1759359038833,-420.0,0.00019178,2]
[388781427,1759359038844,-500.0,0.00019178,2]
[388781428,1759359038854,-500.0,0.00019178,2]
[388781429,1759359038865,-500.0,0.00019178,2]
[388781430,1759359038875,-500.0,0.00019178,2]
[388781431,1759359038885,-500.0,0.00019178,2]
[388781432,1759359038895,-500.0,0.00019178,2]
[388781433,1759359038905,-500.0,0.00019178,2]
[388781434,1759359038914,-500.0,0.00019178,2]
[388781435,1759359038924,-500.0,0.00019178,2]
[388781436,1759359038933,-500.0,0.00019178,2]
[388781437,1759359038943,-506.08860334,0.00019178,2]
[388781438,1759359038953,-500.0,0.00019178,2]
[388781439,1759359038962,-420.0,0.00019178,2]
[388781440,1759359038972,-500.0,0.00019178,2]
[388781441,1759359038981,-500.0,0.00019178,2]
[388781442,1759359038991,-500.0,0.00019178,2]
[388781443,1759359039000,-500.0,0.00019178,2]
[388781444,1759359039009,-500.0,0.00019178,2]
[388781445,1759359039019,-500.0,0.00019178,2]
[388781446,1759359039028,-500.0,0.00019178,2]
[388781447,1759359039037,-500.0,0.00019178,2]
[388781448,1759359039047,-500.0,0.00019178,2]
[388781449,1759359039056,-420.0,0.00019178,2]
[388781450,1759359039065,-418.13,0.00019178,2]
[388781451,1759359039074,-500.0,0.00019178,2]
[388781452,1759359039083,-500.0,0.00019178,2]
[388781453,1759359039093,-500.0,0.00019178,2]
[388781454,1759359039103,-500.0,0.00019178,2]
[388781455,1759359039112,-500.0,0.00019178,2]
[388781456,1759359039122,-500.0,0.00019178,2]
[388781457,1759359039131,-500.0,0.00019178,2]
[388781458,1759359039141,-500.0,0.00019178,2]
[388781459,1759359039151,-500.0,0.00019178,2]
[388781460,1759359039295,-500.0,0.00019178,2]
[388781461,1759359039305,-500.0,0.00019178,2]
[388781462,1759359039315,-506.41,0.00019178,2]
[388781463,1759359039325,-500.0,0.00019178,2]
[388781464,1759359039335,-500.0,0.00019178,2]
[388781465,1759359039344,-420.0,0.00019178,2]
[388781466,1759359039353,-500.0,0.00019178,2]
[388781467,1759359039363,-340.0,0.00019178,2]
[388781468,1759359039372,-500.0,0.00019178,2]
[388781469,1759359039381,-500.0,0.00019178,2]
[388781470,1759359039391,-500.0,0.00019178,2]
[388781471,1759359039401,-500.0,0.00019178,2]
[388781472,1759359039410,-500.0,0.00019178,2]
[388781474,1759359039423,-500.0,0.00019178,2]
[388781476,1759359039433,-500.0,0.00019178,2]
[388781478,1759359039442,-500.0,0.00019178,2]
[388781480,1759359039453,-500.0,0.00019178,2]
[388781482,1759359039463,-500.0,0.00019178,2]
[388781484,1759359039474,-500.0,0.00019178,2]
[388781485,1759359039484,-500.0,0.00019178,2]
[388781486,1759359039497,-500.0,0.00019178,2]
[388781487,1759359039508,-480.0,0.00019178,2]
[388781488,1759359039518,-480.0,0.00019178,2]
[388781489,1759359039528,-480.0,0.00019178,2]
[388781490,1759359039538,-500.0,0.00019178,2]
[388781491,1759359039548,-163.28054906,0.00019178,2]
[388781492,1759359039557,-480.0,0.00019178,2]
[388781493,1759359039567,-480.0,0.00019178,2]
[388781494,1759359039576,-517.31,0.00019178,2]
[388781495,1759359039586,-480.0,0.00019178,2]
[388781496,1759359039595,-480.0,0.00019178,2]
[388781497,1759359039605,-500.0,0.00019178,2]
[388781498,1759359039615,-480.0,0.00019178,2]
[388781499,1759359039624,-480.0,0.00019178,2]
[388781500,1759359039634,-500.0,0.00019178,2]
[388781502,1759359039643,-480.0,0.00019178,2]
[388781505,1759359039652,-500.0,0.00019178,2]
[388781506,1759359039661,-500.0,0.00019178,2]
[388781508,1759359039670,-480.0,0.00019178,2]
[388781510,1759359039680,-500.0,0.00019178,2]
[388781513,1759359039689,-250.67183955,0.00019178,2]
[388781516,1759359039699,-500.0,0.00019178,2]
[388781518,1759359039708,-480.0,0.00019178,2]
[388781520,1759359039717,-480.0,0.00019178,2]
[388781522,1759359039726,-480.0,0.00019178,2]
[388781524,1759359039735,-500.0,0.00019178,2]
[388781526,1759359039744,-480.0,0.00019178,2]
[388781528,1759359039753,-500.0,0.00019178,2]
[388781530,1759359039763,-480.0,0.00019178,2]
[388781532,1759359039772,-500.0,0.00019178,2]
[388781534,1759359039781,-500.0,0.00019178,2]
[388781536,1759359039790,-500.0,0.00019178,2]
[388781538,1759359039800,-480.0,0.00019178,2]
[388781540,1759359039810,-480.0,0.00019178,2]
[388781542,1759359039818,-500.0,0.00019178,2]
[388781544,1759359039827,-500.0,0.00019178,2]
[388781546,1759359039836,-480.0,0.00019178,2]
[388781548,1759359039846,-500.0,0.00019178,2]
[388781549,1759359039855,-480.0,0.00019178,2]
[388781551,1759359039865,-500.0,0.00019178,2]
[388781553,1759359039876,-500.0,0.00019178,2]
[388781555,1759359039885,-500.0,0.00019178,2]
[388781557,1759359039894,-500.0,0.00019178,2]
[388781559,1759359039904,-623.82,0.00019178,2]
[388781561,1759359039913,-500.0,0.00019178,2]
[388781563,1759359039922,-500.0,0.00019178,2]
[388781565,1759359039932,-500.0,0.00019178,2]
[388781567,1759359039941,-500.0,0.00019178,2]
[388781569,1759359039951,-500.0,0.00019178,2]
[388781571,1759359039960,-500.0,0.00019178,2]
[388781574,1759359039969,-500.0,0.00019178,2]
[388781576,1759359039979,-500.0,0.00019178,2]
[388781577,1759359039997,-500.0,0.00019178,2]
[388781580,1759359040007,-500.0,0.00019178,2]
[388781581,1759359040023,-500.0,0.00019178,2]
[388781583,1759359040035,-620.61,0.00019178,2]
[388781585,1759359040045,-500.0,0.00019178,2]
[388781588,1759359040055,-500.0,0.00019178,2]
[388781589,1759359040065,-500.0,0.00019178,2]
[388781592,1759359040075,-500.0,0.00019178,2]
[388781593,1759359040086,-1109.42,0.00019178,2]
[388781595,1759359040095,-500.0,0.00019178,2]
[388781598,1759359040105,-500.0,0.00019178,2]
[388781599,1759359040116,-483.87049688,0.00019178,2]
[388781602,1759359040126,-500.0,0.00019178,2]
[388781604,1759359040136,-500.0,0.00019178,2]
[388781605,1759359040145,-500.0,0.00019178,2]
[388781607,1759359040155,-480.0,0.00019178,2]
[388781609,1759359040165,-500.0,0.00019178,2]
[388781611,1759359040174,-500.0,0.00019178,2]
[388781613,1759359040183,-500.0,0.00019178,2]
[388781615,1759359040192,-500.0,0.00019178,2]
[388781617,1759359040202,-500.0,0.00019178,2]
[388781619,1759359040211,-480.0,0.00019178,2]
[388781621,1759359040221,-500.0,0.00019178,2]
[388781623,1759359040231,-500.0,0.00019178,2]
[388781625,1759359040240,-500.0,0.00019178,2]
[388781627,1759359040249,-500.0,0.00019178,2]
[388781629,1759359040259,-500.0,0.00019178,2]
[388781631,1759359040268,-500.0,0.00019178,2]
[388781633,1759359040277,-460.0,0.00019178,2]
[388781635,1759359040287,-500.0,0.00019178,2]
[388781637,1759359040296,-530.13868282,0.00019178,2]
[388781639,1759359040305,-500.0,0.00019178,2]
[388781641,1759359040314,-500.0,0.00019178,2]
[388781643,1759359040323,-500.0,0.00019178,2]
[388781645,1759359040332,-500.0,0.00019178,2]
[388781647,1759359040342,-500.0,0.00019178,2]
[388781649,1759359040351,-500.0,0.00019178,2]
[388781651,1759359040359,-500.0,0.00019178,2]
[388781653,1759359040370,-500.0,0.00019178,2]
[388781655,1759359040379,-500.0,0.00019178,2]
[388781657,1759359040388,-733.31,0.00019178,2]
[388781659,1759359040397,-500.0,0.00019178,2]
[388781661,1759359040406,-500.0,0.00019178,2]
[388781663,1759359040416,-500.0,0.00019178,2]
[388781665,1759359040429,-500.0,0.00019178,2]
[388781667,1759359040438,-500.0,0.00019178,2]
[388781669,1759359040448,-500.0,0.00019178,2]
[388781671,1759359040457,-500.0,0.00019178,2]
[388781673,1759359040467,-480.0,0.00019178,2]
[388781675,1759359040476,-500.0,0.00019178,2]
[388781677,1759359040485,-500.0,0.00019178,2]
[388781679,1759359040494,-273.68898255,0.00019178,2]
[388781709,1759359047339,1461.65175994,0.00018801,2]
[388781711,1759359064086,154.450076,0.00025752,60]
[388781726,1759359352438,196.190997,0.0001798,2]
[388781757,1759359528208,1418.80965259,0.0001874,2]
[388781759,1759359568287,2920.59,0.00018878,2]
[388781774,1759359885945,250.0,0.00018776,2]
[388781787,1759360035122,-1157.05743149,0.00018947,2]
[388781788,1759360083228,278.96,0.00015984,2]
[388781789,1759360083617,278.96,0.00015984,2]
[388781790,1759360083778,278.94,0.00015984,2]
[388781847,1759360232414,-302.8183302,0.000189,2]
[388781849,1759360232424,-1200.0,0.00018976,2]
[388781851,1759360232434,-1200.0,0.00018977,2]
[388781853,1759360232443,-300.0,0.00018977,2]
[388781855,1759360232452,-300.0,0.00018977,2]
[388781857,1759360232461,-300.0,0.00018977,2]
[388781859,1759360232471,-300.0,0.00018977,2]
[388781861,1759360232480,-300.0,0.00018977,2]
[388781864,1759360232490,-205.79272616,0.00018977,2]
[388781867,1759360232499,-8838.43110291,0.00018978,2]
[388781939,1759360238058,-830.3125598,0.00018978,2]
[388781958,1759360238244,-51659.88412983,0.00018978,2]
[388781960,1759360238254,-296.26,0.0001898,3]
[388781963,1759360238264,-888.82,0.0001898,3]
[388781965,1759360238274,-34368.89706738,0.0001898,2]
[388781967,1759360238284,-2409.54847986,0.00018984,2]
[388781968,1759360238293,-100000.0,0.0001899,2]
[388781970,1759360238303,-200.0,0.0001899,10]
[388781972,1759360238313,-500.0,0.00019,2]
[388781974,1759360238322,-5827.43434478,0.00019078,2]
[388781976,1759360238331,-302.8183302,0.00019089,2]
[388781978,1759360238341,-500.0,0.00019173,2]
[388781981,1759360238351,-500.0,0.00019173,2]
[388781982,1759360238361,-296.90833631,0.00019173,2]
[388781985,1759360238372,-500.0,0.00019173,2]
[388781987,1759360238382,-500.0,0.00019173,2]
[388781989,1759360238391,-500.0,0.00019173,2]
[388781990,1759360238402,-500.0,0.00019173,2]
[388781993,1759360238412,-500.0,0.00019173,2]
[388781995,1759360238422,-158.31676954,0.00019173,2]
[388781997,1759360238432,-500.0,0.00019173,2]
[388781999,1759360238441,-572.08826976,0.00019173,2]
[388782001,1759360238451,-500.0,0.00019173,2]
[388782003,1759360238461,-500.0,0.00019173,2]
[388782005,1759360238471,-516.0221461,0.00019173,2]
[388782007,1759360238480,-500.0,0.00019173,2]
[388782009,1759360238490,-500.0,0.00019173,2]
[388782011,1759360238499,-500.0,0.00019173,2]
[388782013,1759360238509,-500.0,0.00019173,2]
[388782015,1759360238518,-500.0,0.00019173,2]
[388782016,1759360238528,-500.0,0.00019173,2]
[388782018,1759360238537,-500.0,0.00019173,2]
[388782020,1759360238547,-500.0,0.00019173,2]
[388782022,1759360238556,-500.0,0.00019173,2]
[388782024,1759360238566,-500.0,0.00019173,2]
[388782027,1759360238576,-500.0,0.00019173,2]
[388782028,1759360238586,-500.0,0.00019173,2]
[388782031,1759360238596,-500.0,0.00019173,2]
[388782033,1759360238605,-500.0,0.00019173,2]
[388782035,1759360238614,-374.03581349,0.00019173,2]
[388782037,1759360238624,-500.0,0.00019173,2]
[388782038,1759360238633,-500.0,0.00019173,2]
[388782040,1759360238643,-500.0,0.00019173,2]
[388782042,1759360238653,-500.0,0.00019173,2]
[388782044,1759360238662,-500.0,0.00019173,2]
[388782046,1759360238671,-438.65338821,0.00019173,2]
[388782048,1759360238681,-500.0,0.00019173,2]
[388782050,1759360238691,-524.06509231,0.00019178,2]
[388782051,1759360238700,-500.0,0.00019178,2]
[388782053,1759360238709,-500.0,0.00019178,2]
[388782055,1759360238719,-460.0,0.00019178,2]
[388782056,1759360238728,-500.0,0.00019178,2]
[388782057,1759360238738,-500.0,0.00019178,2]
[388782058,1759360238748,-380.0,0.00019178,2]
[388782059,1759360238757,-500.0,0.00019178,2]
[388782060,1759360238767,-500.0,0.00019178,2]
[388782061,1759360238777,-480.0,0.00019178,2]
[388782062,1759360238786,-282.9705953,0.00019178,2]
[388782063,1759360238796,-18199.0758218,0.00019178,2]
[388782064,1759360238805,-466.63485749,0.00019178,2]
[388782065,1759360238815,-500.0,0.00019178,2]
[388782066,1759360238824,-500.0,0.00019178,2]
[388782067,1759360238833,-500.0,0.00019178,2]
[388782068,1759360238842,-500.0,0.00019178,2]
[388782069,1759360238851,-500.0,0.00019178,2]
[388782070,1759360238861,-500.0,0.00019178,2]
[388782071,1759360238870,-500.0,0.00019178,2]
[388782072,1759360238880,-500.0,0.00019178,2]
[388782073,1759360238889,-500.0,0.00019178,2]
[388782074,1759360238899,-500.0,0.00019178,2]
[388782075,1759360238910,-2531.6006367,0.00019178,2]
[388782076,1759360238920,-500.0,0.00019178,2]
[388782077,1759360238930,-500.0,0.00019178,2]
[388782078,1759360238939,-500.0,0.00019178,2]
[388782079,1759360238948,-500.0,0.00019178,2]
[388782080,1759360238957,-500.0,0.00019178,2]
[388782081,1759360238967,-500.0,0.00019178,2]
[388782082,1759360238977,-500.0,0.00019178,2]
[388782083,1759360238987,-436.64,0.00019178,2]
[388782084,1759360238997,-500.0,0.00019178,2]
[388782085,1759360239007,-500.0,0.00019178,2]
[388782086,1759360239016,-500.0,0.00019178,2]
[388782087,1759360239026,-500.0,0.00019178,2]
[388782088,1759360239036,-480.0,0.00019178,2]
[388782089,1759360239046,-500.0,0.00019178,2]
[388782090,1759360239057,-440.0,0.00019178,2]
[388782091,1759360239071,-500.0,0.00019178,2]
[388782092,1759360239081,-500.0,0.00019178,2]
[388782093,1759360239092,-500.0,0.00019178,2]
[388782094,1759360239103,-440.0,0.00019178,2]
[388782095,1759360239114,-500.0,0.00019178,2]
[388782096,1759360239125,-480.0,0.00019178,2]
[388782097,1759360239136,-420.0,0.00019178,2]
[388782098,1759360239146,-500.0,0.00019178,2]
[388782099,1759360239156,-500.0,0.00019178,2]
[388782100,1759360239165,-500.0,0.00019178,2]
[388782101,1759360239175,-500.0,0.00019178,2]
[388782102,1759360239186,-500.0,0.00019178,2]
[388782103,1759360239195,-500.0,0.00019178,2]
[388782104,1759360239205,-500.0,0.00019178,2]
[388782105,1759360239214,-500.0,0.00019178,2]
[388782106,1759360239224,-500.0,0.00019178,2]
[388782107,1759360239234,-440.0,0.00019178,2]
[388782108,1759360239246,-500.0,0.00019178,2]
[388782109,1759360239256,-500.0,0.00019178,2]
[388782110,1759360239265,-442.85676906,0.00019178,2]